Cogmind - Beta 12 X1 @@@ ROGUE MODE // 2022.07.17 @ 20:14:01 Player: Stryker Result: Self-destructed Performance ------------- Evolutions (6) 3000 Regions Visited (24) 4800 Robots Destroyed (239) 1195 Value Destroyed (13175) 13175 Prototype IDs (15) 300 Alien Tech Used (0) 0 Bonus (10114) 10114 TOTAL SCORE: 32584 Bonus ------- High Alert Combat Kills 1084 Follower Combat Kills 3057 Entered Garrisons 1600 Used RIF Installer 4500 Friendly Fire -127 Cogmind --------- Core Integrity 492/1150 Matter 62/550 Energy 22/100 System Corruption 1% Temperature Danger (406) Movement Core (1750) Ox34 Location -4/Armory Parts ------- > --- POWER (1) -------- (None) > --- PROPULSION (6) --- (None) > --- UTILITY (9) ------ Huge Storage Unit Matter Compressor Advanced Signal Interpreter Relay Coupler [NC] (22) Relay Coupler [Swarmer] (2) Relay Coupler [Heavy] (2) > --- WEAPON (3) ------- Enhanced Nova Cannon Light Antimatter Cannon > --- INVENTORY (25) --- Experimental Sensor Array Advanced Cloaking Device Improved Medium Armor Plating Improved Medium Armor Plating Advanced Thermal Shield Advanced Hacking Suite Relay Coupler [NC] (43) Relay Coupler [Heavy] (16) Improved System Guard Dispersion Rifle Quantum Rifle Enhanced Quantum Rifle Enhanced Nova Cannon Enhanced Nova Cannon Enhanced Nova Cannon Enhanced Nova Cannon Enhanced Force Lance Peak State ------------ > --- POWER ------------ Quantum Reactor > --- PROPULSION ------- Biometal Heavy Treads Advanced Heavy Siege Treads Centrium Leg Centrium Leg > --- UTILITY ---------- Huge Storage Unit Experimental Sensor Array Advanced Signal Interpreter Relay Coupler [Swarmer] Relay Coupler [Grunt] Relay Coupler [Duelist] Relay Coupler [Sentry] Relay Coupler [Hunter] Relay Coupler [Proto] > --- WEAPON ----------- Enhanced Quantum Rifle Hypervelocity Mass Driver Advanced Remote Datajack > --- INVENTORY -------- Reinforced Quantum Reactor Advanced Heavy Siege Treads Advanced Heat Sink Matter Compressor Advanced Particle Charger Advanced Cloaking Device Improved Medium Armor Plating Advanced Thermal Shield Advanced Force Field Relay Coupler [NC] Relay Coupler [NC] Relay Coupler [NC] Relay Coupler [Heavy] Relay Coupler [Heavy] Dispersion Rifle Quantum Rifle Enhanced Nova Cannon Enhanced Nova Cannon Enhanced Nova Cannon KE Penetrator KE Penetrator Hypervelocity Mass Driver Hypervelocity Mass Driver Enhanced Force Lance [Rating: 145] Favorites ----------- Power Improved Deuterium Engine Engine Improved Deuterium Engine Power Core Neutrino Core Reactor Particle Reactor Propulsion Light Treads Treads Light Treads Leg Centrium Leg Wheel Armored Huge Wheel Utility Huge Storage Unit Device Experimental Sensor Array Storage Huge Storage Unit Processor Advanced Signal Interpreter Hackware Relay Coupler [Grunt] Protection Reflective Plating Weapon Heavy Machine Gun Energy Gun Particle Gun Energy Cannon Long-range Proton Cannon Ballistic Gun Heavy Machine Gun Ballistic Cannon Enhanced Gauss Cannon Launcher Missile Launcher Special Weapon Advanced Remote Datajack Impact Weapon Hammer Slashing Weapon Power Sword Piercing Weapon Lance Build | -11 -10 -10 -9 -9 -9 -8 -8 -8 -8 -8 -7 -7 -7 -7 -6 -6 -6 -6 -5 -5 -5 -5 -4 -4 ------- Run | Scr Mat Min Mat Min Exi Min Mat Gar Mat Gar Fac Gar Fac Gar Fac Gar Fac Gar Fac Gar Fac Gar Fac Arm Slots Evolved 12 | . . . 2 . . . 2 . . . 2 . . . 2 . . . 2 . . . 2 . Power . | . . . . . . . . . . . . . . . . . . . . . . . . . Propulsion 4 | . . . 1 . . . 2 . . . 1 . . . . . . . . . . . . . Utility 7 | . . . 1 . . . . . . . 1 . . . 2 . . . 2 . . . 1 . Weapon 1 | . . . . . . . . . . . . . . . . . . . . . . . 1 . Parts Attached 433 | 7 12 . 18 5 . . 14 24 9 28 2 24 8 30 7 25 14 38 15 38 21 29 25 40 Power 28 | 1 2 . 3 . . . 3 1 . 1 . 3 . 1 1 1 1 5 . 2 . 2 1 . Engine 12 | 1 2 . 3 . . . 2 1 . . . . . 1 1 1 . . . . . . . . Core 7 | . . . . . . . 1 . . 1 . 2 . . . . 1 . . 2 . . . . Reactor 9 | . . . . . . . . . . . . 1 . . . . . 5 . . . 2 1 . Propulsion 83 | 2 2 . 8 2 . . 4 5 1 7 2 3 . 4 . 6 3 10 2 6 . 9 1 6 Treads 62 | 1 1 . 4 . . . 4 5 1 7 1 3 . 3 . 4 3 8 2 4 . 4 1 6 Leg 13 | . . . 2 . . . . . . . . . . . . 2 . 2 . 2 . 5 . . Wheel 8 | 1 1 . 2 2 . . . . . . 1 . . 1 . . . . . . . . . . Hover . | . . . . . . . . . . . . . . . . . . . . . . . . . Flight . | . . . . . . . . . . . . . . . . . . . . . . . . . Utility 156 | 2 3 . 4 2 . . 2 5 4 4 . 7 4 9 3 10 6 13 9 15 18 9 12 15 Device 76 | 1 3 . 3 2 . . 2 . 2 . . 2 2 1 1 2 2 2 7 5 15 3 9 12 Storage 5 | 1 . . 1 . . . . . . . . . . . . . . . . 1 . . 1 1 Processor 4 | . . . . . . . . 1 . . . . . . 1 . 1 . . 1 . . . . Hackware 40 | . . . . . . . . . . 1 . 2 2 4 1 4 2 7 1 4 3 6 1 2 Protection 31 | . . . . . . . . 4 2 3 . 3 . 4 . 4 1 4 1 4 . . 1 . Artifact . | . . . . . . . . . . . . . . . . . . . . . . . . . Weapon 166 | 2 5 . 3 1 . . 5 13 4 16 . 11 4 16 3 8 4 10 4 15 3 9 11 19 Energy Gun 24 | 1 4 . 3 . . . 3 1 2 2 . . . 1 . 1 . . . 2 . 3 1 . Energy Cannon 26 | . . . . . . . . . . . . 7 1 5 1 1 . . 1 3 2 . 2 3 Ballistic Gun 48 | 1 . . . 1 . . 1 6 2 6 . . . 2 . 2 2 5 2 5 1 2 3 7 Ballistic Cannon 12 | . . . . . . . . . . 2 . . . 2 . 1 . . . . . . 2 5 Launcher 5 | . . . . . . . 1 . . 1 . 1 1 1 . . . . . . . . . . Special Weapon 36 | . . . . . . . . . . 1 . 3 2 4 1 3 1 5 1 5 . 3 3 4 Impact Weapon 6 | . 1 . . . . . . 5 . . . . . . . . . . . . . . . . Slashing Weapon 2 | . . . . . . . . . . . . . . . 1 . 1 . . . . . . . Piercing Weapon 7 | . . . . . . . . 1 . 4 . . . 1 . . . . . . . 1 . . Special Melee Weapon . | . . . . . . . . . . . . . . . . . . . . . . . . . Unidentified Prototypes 5 | . . . . 1 . . 1 1 . . . . . . . . . . . . 1 . . 1 Parts Lost 81 | . 7 . 1 2 . . . 3 . 10 . 6 1 6 . 4 . 8 . 7 1 2 5 18 Power 4 | . 2 . . . . . . . . . . . . . . . . . . . . . 1 1 Propulsion 36 | . 2 . 1 1 . . . 3 . 6 . 3 . 2 . 3 . 5 . 3 . 1 1 5 Utility 23 | . 1 . . . . . . . . 1 . 3 . 3 . 1 . 2 . 2 1 1 2 6 Weapon 18 | . 2 . . 1 . . . . . 3 . . 1 1 . . . 1 . 2 . . 1 6 Highest Loss Streak 11 | . 6 . 1 1 . . . 2 . 4 . 3 1 4 . 3 . 6 . 6 1 1 4 11 To Critical Strikes 3 | . . . . . . . . . . 1 . . . . . . . . . 1 . 1 . . Average Slot Usage (%) 93 | . 96 100 99 99 100 100 100 99 100 99 87 84 82 82 86 90 99 97 94 89 88 88 88 88 Engine 4 | . 13 14 11 11 11 11 7 9 9 1 . . . 2 6 6 2 . . . . . . . Core 1 | . . . . . . . 1 . . 7 7 6 . . . . 3 4 . 3 5 3 . . Reactor 1 | . . . . . . . . . . . . . 7 4 . . . 1 5 1 . 1 4 4 Treads 27 | . 13 14 19 22 22 22 45 44 45 44 38 23 23 24 26 27 33 33 23 21 23 16 9 17 Leg 2 | . . . 1 . . . . . . . . . . . . 4 6 3 5 3 . 6 10 5 Wheel 3 | . 13 14 11 10 11 11 . . . . 2 7 7 5 . . . . . . . . . . Device 7 | . 13 14 21 22 22 22 18 1 5 . . 5 6 2 6 2 9 2 5 6 5 4 4 5 Storage 7 | . 14 14 11 11 11 11 9 9 9 9 7 7 7 7 6 6 6 6 5 5 5 5 5 5 Processor 4 | . . . . . . . . 8 9 9 7 2 . . 6 6 6 6 5 5 5 5 5 5 Hackware 12 | . . . . . . . . . . . . 5 13 16 11 14 15 16 28 25 28 29 30 29 Protection 3 | . . . . . . . . 8 3 8 7 7 1 2 7 7 1 5 . 1 . . . . Energy Gun 5 | . 16 14 21 15 11 11 9 9 9 4 . . . 1 . 1 . . . 1 1 4 3 . Energy Cannon 2 | . . . . . . . . . . . . 6 7 6 4 5 2 . 2 3 3 . 2 4 Ballistic Gun 4 | . 6 . . 6 11 11 7 4 3 9 7 6 . 1 . 1 1 8 3 3 3 2 1 2 Special Weapon 1 | . . . . . . . . . . 1 . 1 6 2 4 1 4 3 4 1 1 1 2 3 Naked Turns . | . . . . . . . . . . . . . . . . . . . . . . . . . Heaviest Build 148 | 13 17 17 96 96 96 96 99 105 105 105 98 116 116 119 120 116 111 112 123 125 127 127 145 148 Greatest Support 190 | 20 20 16 16 16 16 16 103 106 106 107 127 110 28 137 137 137 118 138 145 190 190 163 160 163 Greatest Overweight (x) 9 | 1 2 1 5 9 5 5 . 1 . 1 3 4 4 4 . 1 1 1 . 1 . 1 . 1 Average Overweight (x) 1 | . . 1 3 7 5 5 . . . . . 2 3 2 . . . . . . . . . . Largest Inventory Capacity 25 | 8 8 8 25 25 25 25 25 25 25 25 25 25 25 25 25 25 25 25 25 25 25 25 25 25 Average Capacity 23 | 7 8 8 20 25 25 25 25 25 25 25 25 25 25 25 25 25 25 25 25 25 25 25 25 25 Most Carried 25 | 6 8 8 25 25 25 25 25 25 25 25 25 25 25 25 24 25 25 25 25 25 25 25 25 25 Average Carried 23 | 3 7 8 16 24 25 24 24 24 24 24 23 24 24 24 23 24 24 24 24 24 24 24 23 22 Final Capacity 25 | 8 8 8 25 25 25 25 25 25 25 25 25 25 25 25 25 25 25 25 25 25 25 25 25 25 Final Carried 25 | 6 8 8 25 25 25 25 25 25 25 24 25 25 25 25 24 25 25 25 25 25 24 25 21 17 Class Distribution -------------------- 52% | Botlord-Mutant 21% | Scavenger-Mutant 13% | Mutant 8% | Bothacker-Mutant 3% | Commander-Mutant Dominant Class ---------------- Mutant | -10/Materials Mutant | -10/Mines Mutant | -9/Materials Scavenger-Mutant | -9/Mines Mutant | -9/Exiles Mutant | -8/Mines Scavenger-Mutant | -8/Materials Scavenger-Mutant | -8/Garrison Commander-Mutant | -8/Materials Scavenger-Mutant | -8/Garrison Bothacker-Mutant | -7/Factory Bothacker-Mutant | -7/Garrison Botlord-Mutant | -7/Factory Botlord-Mutant | -7/Garrison Botlord-Mutant | -6/Factory Botlord-Mutant | -6/Garrison Botlord-Mutant | -6/Factory Botlord-Mutant | -6/Garrison Botlord-Mutant | -5/Factory Botlord-Mutant | -5/Garrison Botlord-Mutant | -5/Factory Botlord-Mutant | -5/Garrison Botlord-Mutant | -4/Factory Botlord-Mutant | -4/Armory Resources | -11 -10 -10 -9 -9 -9 -8 -8 -8 -8 -8 -7 -7 -7 -7 -6 -6 -6 -6 -5 -5 -5 -5 -4 -4 ----------- Run | Scr Mat Min Mat Min Exi Min Mat Gar Mat Gar Fac Gar Fac Gar Fac Gar Fac Gar Fac Gar Fac Gar Fac Arm Matter Collected 9755 | 288 392 . 180 81 . 36 284 322 234 843 . 554 258 599 35 586 237 837 293 1041 632 687 596 740 Remotely . | . . . . . . . . . . . . . . . . . . . . . . . . . Salvage Created 9694 | 97 482 100 748 253 . 151 427 718 448 604 . 574 215 317 . 552 112 632 67 869 587 408 738 595 Parts 494 | 2 21 3 50 15 . 3 34 41 28 38 . 23 11 18 . 33 4 23 6 32 28 19 29 33 Haulers Intercepted 1 | . . . 1 . . . . . . . . . . . . . . . . . . . . . Recyclers Shooed 2 | . . . 1 . . . . . . . . . . . . . . . . . . . 1 . Parts Field Recycled . | . . . . . . . . . . . . . . . . . . . . . . . . . Retrieved Matter . | . . . . . . . . . . . . . . . . . . . . . . . . . Parts Self-Destructed . | . . . . . . . . . . . . . . . . . . . . . . . . . Prevented . | . . . . . . . . . . . . . . . . . . . . . . . . . Kills | -11 -10 -10 -9 -9 -9 -8 -8 -8 -8 -8 -7 -7 -7 -7 -6 -6 -6 -6 -5 -5 -5 -5 -4 -4 ------- Run | Scr Mat Min Mat Min Exi Min Mat Gar Mat Gar Fac Gar Fac Gar Fac Gar Fac Gar Fac Gar Fac Gar Fac Arm Combat Hostiles Destroyed 215 | . 12 4 14 9 . 3 13 16 10 23 . 14 5 8 . 12 2 11 1 16 10 9 11 12 Melee 6 | . 1 3 . . . . . . . . . . . . . . 2 . . . . . . . Guns 128 | . 10 . 13 9 . 3 8 15 10 15 . 3 . 2 . 5 . 11 . 8 3 9 1 3 Cannons 58 | . . . . . . . . . . 5 . 7 2 6 . 7 . . 1 5 6 . 10 9 AOE 18 | . . . 1 . . . 5 1 . 3 . 4 3 . . . . . . 1 . . . . Classes Destroyed 19 | 2 5 . 2 . . . 2 3 . 2 . . . 1 . . . . 1 . . . 1 . Worker 2 | . . . . . . . . . . . . . . . . . . . 1 . . . 1 . Builder 6 | . . . . . . . 1 . . . . . . . . . . . . . 2 . 3 . Tunneler 2 | 1 . . . 1 . . . . . . . . . . . . . . . . . . . . Hauler 1 | . . . 1 . . . . . . . . . . . . . . . . . . . . . Recycler 4 | 1 . . 1 . . . 2 . . . . . . . . . . . . . . . . . Mechanic 2 | . 1 . 1 . . . . . . . . . . . . . . . . . . . . . Operator 2 | . 1 . . . . . . . . . . . . . . . . . . . 1 . . . Watcher 5 | . 1 . 1 . . . 1 . . . . . 1 . . . . . . . 1 . . . Swarmer 65 | . 3 3 3 6 . . 8 4 3 12 . 5 . 3 . 5 . . . 3 3 1 . 3 Cutter 4 | . . . . . . . . . . . . . . 1 . . . . . . . 3 . . Grunt 73 | . 9 1 4 3 . 3 2 3 5 3 . 2 5 2 . 3 2 10 . 5 3 . 2 6 Brawler 6 | . . . . . . . 1 1 . . . 2 . 1 . . . . . . 1 . . . Duelist 3 | . . . . . . . . 1 . . . 1 . . . . . . . . . . . 1 Protector 1 | . . . . . . . . . . . . . . . . . . . . . . . 1 . Sentry 27 | . . . 7 . . . 2 4 1 4 . . . 1 . 1 . . . 5 . 1 . 1 Specialist 2 | . . . . . . . . 2 . . . . . . . . . . . . . . . . Hunter 12 | . . . . . . . . 1 1 . . 1 . . . 2 . 1 . 2 . 1 3 . Programmer 18 | . . . . . . . . . . 3 . 3 . . . . . . 1 . 3 3 4 1 Behemoth 4 | . . . . . . . . . . 1 . . . . . 1 . . . 1 . . 1 . Best Kill Streak 8 | 1 3 3 5 3 . 2 5 4 3 3 . 3 5 2 . 3 2 3 1 4 4 4 8 4 Combat Bots Only 5 | . 3 3 4 3 . 2 4 4 3 3 . 3 4 2 . 3 2 3 1 4 3 4 5 4 Max Kills in Single Turn 3 | 1 1 1 3 2 . 1 3 1 1 2 . 2 2 1 . 1 1 1 1 1 2 2 2 1 Gunslinging 1 | . . . . 1 . . . . . . . . . . . . . . . . . 1 . . Exploded 3 | . . . 1 . . . 3 1 . 2 . 2 2 . . . . . . 1 . . . . Melee 1 | . 1 1 . . . . . . . . . . . . . . 1 . . . . . . . Uniques/NPCs Destroyed . | . . . . . . . . . . . . . . . . . . . . . . . . . Combat | -11 -10 -10 -9 -9 -9 -8 -8 -8 -8 -8 -7 -7 -7 -7 -6 -6 -6 -6 -5 -5 -5 -5 -4 -4 -------- Run | Scr Mat Min Mat Min Exi Min Mat Gar Mat Gar Fac Gar Fac Gar Fac Gar Fac Gar Fac Gar Fac Gar Fac Arm Damage Taken 22382 | . 756 193 383 212 . 114 432 793 464 1531 . 1214 110 888 . 772 241 1638 280 2957 827 1055 4055 3467 Core 1967 | . 165 32 29 23 . . 52 48 43 132 . 54 16 58 . 58 11 81 42 254 78 133 244 414 Absorbed by Shields 3548 | . . . . . . . . . . . . . . . . 268 . 61 . 2447 65 391 159 157 Reduced by Siege Mode 1275 | . . . . . . . . . . . . 7 . 5 . 2 . . . 215 94 . 910 42 Regen/Repaired (Parts) 41 | . . . 41 . . . . . . . . . . . . . . . . . . . . . Core Remaining (%) 67 | 100 . 21 . . . 87 . . . 50 . . . 81 . . . 82 . . . 49 . . Volleys Fired 961 | 6 48 . 32 13 . 9 28 36 31 86 . 67 35 93 12 72 13 59 17 82 46 45 72 59 Largest 3 | 2 2 . 2 2 . 2 2 2 2 2 . 2 1 2 1 2 1 2 1 2 2 2 3 3 Hottest 252 | 70 90 . 130 110 . 88 98 73 93 95 . 128 98 179 98 192 7 65 113 188 146 182 252 240 Shots Fired 1485 | 9 82 . 64 26 . 16 55 67 59 144 . 88 35 108 12 96 13 94 18 139 75 66 122 97 Gun 839 | 9 82 . 64 26 . 16 49 67 59 112 . 22 . 16 . 42 . 75 1 89 31 43 23 13 Cannon 435 | . . . . . . . . . . 23 . 55 18 71 4 41 . . 5 42 36 . 70 70 Launcher 17 | . . . . . . . 6 . . 1 . 4 5 1 . . . . . . . . . . Special 194 | . . . . . . . . . . 8 . 7 12 20 8 13 13 19 12 8 8 23 29 14 Kinetic 629 | 6 29 . . 9 . 9 22 33 31 92 . 22 . 15 . 33 . 75 1 86 31 20 61 54 Thermal 441 | 3 53 . 34 13 . 7 27 . . . . 38 17 44 4 31 . . 5 45 36 23 32 29 Explosive 17 | . . . . . . . 6 . . 1 . 4 5 1 . . . . . . . . . . Electromagnetic 204 | . . . 30 4 . . . 34 28 43 . 17 1 28 . 19 . . . . . . . . Robot Hit Streak 36 | 7 10 . 13 9 . 11 15 15 9 14 . 14 7 12 4 16 5 11 10 26 23 15 36 23 Robot Miss Streak 7 | 1 3 . 2 1 . 1 2 2 7 4 . 2 5 4 1 2 2 2 2 3 2 3 3 4 Penetration Max 1 | . . . . . . . . . 1 1 . . . . . . . . . . 1 . 1 1 Secondary Targets 15 | . 1 . . 2 . . 2 1 2 2 . . . . . . . 1 . 1 . 3 . . Max Gunslinging Chain 1 | . 1 . . 1 . . 1 1 1 1 . . . . . . . 1 . 1 . 1 . . Shots Hit Robots 999 | 7 56 10 53 18 . 14 42 52 35 90 . 47 15 44 5 53 16 66 14 107 52 50 91 62 Core Hits 386 | 3 23 2 33 12 . 7 25 35 16 31 . 21 9 11 . 19 1 23 3 32 21 16 24 19 Critical Kills 15 | . . . . . . . . . . 1 . . . . . . . . . 2 1 . 10 1 Critical Parts Destroyed 14 | . 1 . . . . . . . . . . . . . . . . . . 1 1 . 9 2 Critical Strikes 51 | 1 5 . 2 1 . . 1 . . 4 . . . 1 . . 1 . . 3 2 3 23 4 Burn 12 | 1 4 . 2 1 . . 1 . . . . . . . . . . . . . . 3 . . Meltdown 3 | . . . . . . . . . . . . . . . . . . . . 2 1 . . . Destroy 29 | . . . . . . . . . . 1 . . . . . . . . . 1 1 . 23 3 Blast 5 | . . . . . . . . . . 3 . . . 1 . . . . . . . . . 1 Smash 1 | . 1 . . . . . . . . . . . . . . . . . . . . . . . Sever 1 | . . . . . . . . . . . . . . . . . 1 . . . . . . . Melee Attacks 92 | . 4 16 . . . . . 43 1 13 . . . 2 2 . 9 . . . . 2 . . Impact 58 | . 4 16 . . . . . 38 . . . . . . . . . . . . . . . . Slashing 11 | . . . . . . . . . . . . . . . 2 . 9 . . . . . . . Piercing 23 | . . . . . . . . 5 1 13 . . . 2 . . . . . . . 2 . . Sneak Attacks 2 | . 1 1 . . . . . . . . . . . . . . . . . . . . . . Combat Hostiles . | . . . . . . . . . . . . . . . . . . . . . . . . . Follow-up Attacks . | . . . . . . . . . . . . . . . . . . . . . . . . . Damage Inflicted 22391 | 87 753 252 778 277 . 216 1010 999 863 2219 . 1643 398 898 . 1280 285 1262 215 2756 1717 933 1663 1887 Guns 12138 | 87 654 . 735 277 . 216 626 860 863 1258 . 404 . 166 . 691 . 1262 23 1565 711 872 605 263 Cannons 7888 | . . . . . . . . . . 791 . 860 64 532 . 589 . . 187 1188 995 . 1058 1624 Explosions 1556 | . . . 43 . . . 384 122 . 170 . 379 325 133 . . . . . . . . . . Melee 770 | . 99 252 . . . . . 17 . . . . . 67 . . 285 . . . . 50 . . Ramming 39 | . . . . . . . . . . . . . 9 . . . . . 5 3 11 11 . . Kinetic 10091 | 51 189 . . 108 . 105 302 302 412 1635 . 404 . 178 . 404 . 1262 23 1539 711 376 1053 1037 Thermal 7397 | 36 465 . 379 119 . 111 324 122 . 59 . 678 64 161 . 527 . . 187 1214 995 496 610 850 Explosive 1128 | . . . . . . . 384 . . 111 . 175 325 133 . . . . . . . . . . Electromagnetic 2966 | . . . 399 50 . . . 558 451 414 . 386 . 359 . 349 . . . . . . . . Impact 368 | . 99 252 . . . . . 17 . . . . . . . . . . . . . . . . Slashing 285 | . . . . . . . . . . . . . . . . . 285 . . . . . . . Piercing 117 | . . . . . . . . . . . . . . 67 . . . . . . . 50 . . Highest Corruption 20 | . . . . . . . . . . 3 . 10 10 20 . 1 1 1 4 4 8 18 1 1 Average Corruption 5 | . . . . . . . . . . 2 . 8 10 11 . 1 1 1 2 4 4 14 1 1 Corruption Purged . | . . . . . . . . . . . . . . . . . . . . . . . . . Corruption Blocked . | . . . . . . . . . . . . . . . . . . . . . . . . . Effects 277 | . . . . . . . . . . 25 . 39 21 72 . 5 2 8 6 29 24 37 4 5 Message Errors 71 | . . . . . . . . . . 6 . 14 5 18 . 1 . 1 2 5 7 11 . 1 Matter Fused 65 | . . . . . . . . . . 8 . 6 4 16 . 2 1 3 . 9 7 7 1 1 Heat Flow Errors 27 | . . . . . . . . . . 3 . 5 2 7 . 1 1 2 1 3 1 . . 1 Energy Discharges 35 | . . . . . . . . . . 2 . 2 2 9 . . . 1 1 5 5 6 . 2 Parts Rejected 2 | . . . . . . . . . . . . . . 2 . . . . . . . . . . Data Loss (minor) 35 | . . . . . . . . . . 3 . 5 4 9 . . . 1 . 3 3 5 2 . Data Loss (major) 12 | . . . . . . . . . . 1 . 2 . 2 . . . . 1 2 . 4 . . Misfires 15 | . . . . . . . . . . 2 . 2 1 3 . 1 . . 1 . 1 3 1 . Alerts 9 | . . . . . . . . . . . . 3 2 3 . . . . . 1 . . . . Misdirections 1 | . . . . . . . . . . . . . . 1 . . . . . . . . . . Weapon Failures 5 | . . . . . . . . . . . . . 1 2 . . . . . 1 . 1 . . Overload Shots . | . . . . . . . . . . . . . . . . . . . . . . . . . Overflow Damage 298 | . 60 18 . . . . 9 . . 12 . 56 7 7 . 8 40 . 12 13 18 . 15 23 Projectiles 152 | . . . . . . . . . . . . 56 . 7 . 8 . . 12 13 18 . 15 23 Explosions 28 | . . . . . . . 9 . . 12 . . 7 . . . . . . . . . . . Melee 118 | . 60 18 . . . . . . . . . . . . . . 40 . . . . . . . Knockbacks 20 | . 1 . . . . . . . . 2 . . 1 . . 1 . . . . . . 7 8 Impact 2 | . 1 . . . . . . . . . . . 1 . . . . . . . . . . . Kinetic 16 | . . . . . . . . . . 1 . . . . . 1 . . . . . . 7 7 Secondary 2 | . . . . . . . . . . 1 . . . . . . . . . . . . . 1 Self-Inflicted Damage 234 | . . . 51 . . . 76 15 . 34 . 54 4 . . . . . . . . . . . Shots 7 | . . . 2 . . . 2 1 . 1 . 1 . . . . . . . . . . . . Rammed 7 | . 1 . . . . . . . . . . . 1 . . . . . 1 1 1 2 . . Targets Rammed 7 | . 1 . . . . . . . . . . . 1 . . . . . 1 1 1 2 . . Kicked . | . . . . . . . . . . . . . . . . . . . . . . . . . Crushed . | . . . . . . . . . . . . . . . . . . . . . . . . . Highest Temperature 541 | 27 363 . 19 9 . 9 42 114 290 286 . 294 288 464 42 410 174 178 101 360 240 37 426 541 Average Temperature 98 | 14 171 . 4 8 . 9 16 24 122 75 . 71 93 84 28 105 86 24 38 108 65 25 89 237 Received Heat Transfer 3198 | . 420 36 147 51 . 54 81 117 117 372 . 72 . 72 . 123 78 493 18 285 99 34 264 265 Effects 41 | . 5 . . . . . . . . . . 4 . 3 . 1 . . . . . . 1 27 Shutdowns 6 | . . . . . . . . . . . . . . . . . . . . . . . 1 5 Energy Bleed 1 | . . . . . . . . . . . . . . . . . . . . . . . . 1 Interference 15 | . 3 . . . . . . . . . . 4 . 2 . . . . . . . . . 6 Matter Decay 2 | . . . . . . . . . . . . . . . . . . . . . . . . 2 Short Circuit 5 | . 1 . . . . . . . . . . . . 1 . . . . . . . . . 3 Damage (minor) 5 | . 1 . . . . . . . . . . . . . . 1 . . . . . . . 3 Damage (major) 7 | . . . . . . . . . . . . . . . . . . . . . . . . 7 Siege Activations 21 | . . . . . . . . . . . . 1 . 2 . 3 . . 1 5 4 . 3 2 Total Turns 530 | . . . . . . . . . . . . 11 . 9 . 49 . . 8 168 113 . 128 44 Longest Duration 93 | . . . . . . . . . . . . 11 . 6 . 24 . . 8 85 52 . 93 24 Robots Corrupted . | . . . . . . . . . . . . . . . . . . . . . . . . . Combat Hostiles . | . . . . . . . . . . . . . . . . . . . . . . . . . Parts Fried 12 | . 4 2 . . . . . 1 1 1 . 3 . . . . . . . . . . . . Impact Corruptions 6 | . 3 3 . . . . . . . . . . . . . . . . . . . . . . Robots Melted 3 | . . . . . . . . . . . . . . . . . . . . 2 1 . . . Combat Hostiles 3 | . . . . . . . . . . . . . . . . . . . . 2 1 . . . Parts Melted 36 | 1 7 . . 1 . . 6 . . . . 2 . 2 . 2 2 . . 6 1 6 . . Heat Transferred 10686 | 185 1582 . 1099 370 . 259 851 150 . 50 . 800 100 250 . 681 . . 148 1147 888 794 629 703 Parts Sabotaged 7 | . . . . . . . . . . . . . . . . . . . . . . . . 7 Parts Stolen . | . . . . . . . . . . . . . . . . . . . . . . . . . Parts Stripped . | . . . . . . . . . . . . . . . . . . . . . . . . . Power Chain Reactions 7 | . . . 2 . . . . 2 . 1 . 2 . . . . . . . . . . . . Missiles Intercepted . | . . . . . . . . . . . . . . . . . . . . . . . . . Alert | -11 -10 -10 -9 -9 -9 -8 -8 -8 -8 -8 -7 -7 -7 -7 -6 -6 -6 -6 -5 -5 -5 -5 -4 -4 ------- Run | Scr Mat Min Mat Min Exi Min Mat Gar Mat Gar Fac Gar Fac Gar Fac Gar Fac Gar Fac Gar Fac Gar Fac Arm Peak Influence 1497 | 10 264 143 322 108 . 85 396 981 554 1136 596 1009 568 1095 577 613 401 587 591 1497 812 514 335 250 Initial 785 | . 6 43 55 3 . . . 77 477 269 596 417 529 179 574 108 321 151 308 237 785 289 266 81 Average 422 | 4 110 116 167 59 . 20 207 502 408 656 596 692 334 605 431 404 327 334 409 936 510 417 228 113 Maximum Alert Level 4 | . 1 . 1 . . . 1 3 2 4 2 3 2 3 2 2 2 2 2 4 3 2 1 1 Low Security (%) 25 | 100 78 100 59 100 . 100 45 13 4 . . . 5 6 29 14 . 18 . . . . 36 90 Level 1 27 | . 21 . 40 . . . 54 21 33 24 . . 75 5 . 41 95 38 52 8 38 39 63 9 Level 2 29 | . . . . . . . . 38 61 37 100 55 19 53 69 44 4 42 47 10 33 60 . . Level 3 14 | . . . . . . . . 27 . 28 . 44 . 34 . . . . . 48 27 . . . Level 4 2 | . . . . . . . . . . 9 . . . . . . . . . 31 . . . . Level 5 . | . . . . . . . . . . . . . . . . . . . . . . . . . High Security . | . . . . . . . . . . . . . . . . . . . . . . . . . Max Security . | . . . . . . . . . . . . . . . . . . . . . . . . . Squads Dispatched 26 | . 2 . 1 . . . . . 3 . . . 3 . . . 1 . 2 . 5 . 6 3 Investigation 4 | . 1 . 1 . . . . . . . . . 2 . . . . . . . . . . . Extermination 4 | . . . . . . . . . . . . . . . . . . . 1 . 1 . 1 1 Reinforcement 13 | . 1 . . . . . . . 2 . . . 1 . . . 1 . 1 . 2 . 3 2 Assault 3 | . . . . . . . . . . . . . . . . . . . . . 2 . 1 . Garrison 2 | . . . . . . . . . 1 . . . . . . . . . . . . . 1 . Intercept . | . . . . . . . . . . . . . . . . . . . . . . . . . Searches Triggered . | . . . . . . . . . . . . . . . . . . . . . . . . . Construction Impeded 1 | . . . . . . . . . . . . . . . . . . . . . . . 1 . Haulers Reinforced 1 | . . . . . . . . . . . . . . . . . . . 1 . . . . . Active Scanning Responses . | . . . . . . . . . . . . . . . . . . . . . . . . . Cargo Convoy Interrupts . | . . . . . . . . . . . . . . . . . . . . . . . . . Alert ID Control Effect 42 | . . . . . . . . . . . . 6 3 4 . 4 1 4 . 1 . 5 11 3 Stealth | -11 -10 -10 -9 -9 -9 -8 -8 -8 -8 -8 -7 -7 -7 -7 -6 -6 -6 -6 -5 -5 -5 -5 -4 -4 --------- Run | Scr Mat Min Mat Min Exi Min Mat Gar Mat Gar Fac Gar Fac Gar Fac Gar Fac Gar Fac Gar Fac Gar Fac Arm Distress Signals 14 | . 3 . 3 . . . . . 1 . . . 1 . . . 2 . . . . . 4 . Communications Jammed 174 | . . . . . . . . . . . . . 32 . . . 38 . 1 . 56 . . 47 Distress Signals 173 | . . . . . . . . . . . . . 32 . . . 37 . 1 . 56 . . 47 Times Spotted 433 | . 22 5 19 10 . 3 15 20 20 29 . 23 12 28 1 20 10 29 11 32 25 28 33 38 Peak Tracking Total 9 | . 8 3 6 3 . 3 4 6 6 4 . 5 4 4 1 3 5 9 4 6 8 7 9 9 Tactical Retreats 19 | . 3 . 1 1 . . . 1 1 3 . . . . . . . 2 . 1 1 4 . 1 Traps | -11 -10 -10 -9 -9 -9 -8 -8 -8 -8 -8 -7 -7 -7 -7 -6 -6 -6 -6 -5 -5 -5 -5 -4 -4 ------- Run | Scr Mat Min Mat Min Exi Min Mat Gar Mat Gar Fac Gar Fac Gar Fac Gar Fac Gar Fac Gar Fac Gar Fac Arm Traps Triggered 25 | . 1 . 2 . . . . 4 . 2 . 4 . 7 . . 1 . 1 1 . 2 . . Indirectly . | . . . . . . . . . . . . . . . . . . . . . . . . . Trap Hack Attempts . | . . . . . . . . . . . . . . . . . . . . . . . . . Triggered . | . . . . . . . . . . . . . . . . . . . . . . . . . Disarmed . | . . . . . . . . . . . . . . . . . . . . . . . . . Reprogrammed . | . . . . . . . . . . . . . . . . . . . . . . . . . Reused . | . . . . . . . . . . . . . . . . . . . . . . . . . Traps Extracted . | . . . . . . . . . . . . . . . . . . . . . . . . . Installed . | . . . . . . . . . . . . . . . . . . . . . . . . . Triggered . | . . . . . . . . . . . . . . . . . . . . . . . . . Machines | -11 -10 -10 -9 -9 -9 -8 -8 -8 -8 -8 -7 -7 -7 -7 -6 -6 -6 -6 -5 -5 -5 -5 -4 -4 ---------- Run | Scr Mat Min Mat Min Exi Min Mat Gar Mat Gar Fac Gar Fac Gar Fac Gar Fac Gar Fac Gar Fac Gar Fac Arm Machines Disabled 52 | . . . . . . 1 1 2 . 6 . 4 5 8 . 4 . 3 1 4 2 2 5 4 Max in Single Turn 2 | . . . . . . 1 1 1 . 1 . 1 2 1 . 1 . 1 . 1 1 1 . 1 Garrison Access 1 | . . . . . . . . . . . . . . . . . . . . . . . 1 . Garrison Relay 18 | . . . . . . . . 2 . 2 . 3 . 3 . 2 . 3 . 2 . 1 . . Machines Sabotaged . | . . . . . . . . . . . . . . . . . . . . . . . . . Garrisons Compromised . | . . . . . . . . . . . . . . . . . . . . . . . . . Overloaded Fab Kills . | . . . . . . . . . . . . . . . . . . . . . . . . . Hacking | -11 -10 -10 -9 -9 -9 -8 -8 -8 -8 -8 -7 -7 -7 -7 -6 -6 -6 -6 -5 -5 -5 -5 -4 -4 --------- Run | Scr Mat Min Mat Min Exi Min Mat Gar Mat Gar Fac Gar Fac Gar Fac Gar Fac Gar Fac Gar Fac Gar Fac Arm Machines Accessed 64 | . 7 1 8 . 1 . 3 2 4 2 1 1 5 3 2 2 2 2 3 . 6 1 4 4 Terminals 47 | . 5 . 6 . . . 2 2 2 2 . 1 3 3 1 2 1 2 1 . 5 1 4 4 Fabricators . | . . . . . . . . . . . . . . . . . . . . . . . . . Repair Stations 1 | . . . 1 . . . . . . . . . . . . . . . . . . . . . Recycling Units 6 | . 2 . 1 . . . . . 1 . . . 1 . . . . . 1 . . . . . Scanalyzers . | . . . . . . . . . . . . . . . . . . . . . . . . . Garrison Access 8 | . . . . . . . 1 . 1 . 1 . 1 . 1 . 1 . 1 . 1 . . . Total Hacks 139 | . 17 1 17 . 3 . 7 4 11 4 1 2 10 6 8 6 4 5 5 . 10 2 7 9 Successful 71 | . 11 1 8 . 3 . 7 2 6 1 1 1 2 3 4 3 2 4 3 . 4 . 1 4 Failed 68 | . 6 . 9 . . . . 2 5 3 . 1 8 3 4 3 2 1 2 . 6 2 6 5 Catastrophic 16 | . . . 1 . . . . 1 . 1 . 1 3 1 . 3 . . 1 . 2 . 1 1 Database Lockouts . | . . . . . . . . . . . . . . . . . . . . . . . . . Manual 65 | . 11 . 9 . . . 4 2 2 2 . 1 4 4 4 4 2 3 3 . 2 . 1 7 Terminals 117 | . 15 . 14 . . . 6 4 9 4 . 2 7 6 7 6 3 5 2 . 9 2 7 9 Fabricators . | . . . . . . . . . . . . . . . . . . . . . . . . . Repair Stations 2 | . . . 2 . . . . . . . . . . . . . . . . . . . . . Recycling Units 8 | . 2 . 1 . . . . . 1 . . . 2 . . . . . 2 . . . . . Scanalyzers . | . . . . . . . . . . . . . . . . . . . . . . . . . Garrison Access 8 | . . . . . . . 1 . 1 . 1 . 1 . 1 . 1 . 1 . 1 . . . Terminal Hacks 37 | . 4 1 5 . 3 . 4 1 3 1 . 1 . 1 3 1 . 2 . . 3 . 1 3 Record 3 | . . . . . 3 . . . . . . . . . . . . . . . . . . . Prototype ID Bank 4 | . . . 2 . . . 1 . . . . . . . 1 . . . . . . . . . Open Door 4 | . . 1 . . . . . . . . . . . 1 . . . 1 . . . . . 1 Level Access Points 1 | . . . . . . . . . . . . . . . . . . . . . . . . 1 Branch Access Points 2 | . . . . . . . . . . . . . . . . . . . . . 1 . 1 . Emergency Access Points 2 | . . . . . . . . 1 . 1 . . . . . . . . . . . . . . Alert Level 3 | . . . 1 . . . 2 . . . . . . . . . . . . . . . . . Unreport Threat 6 | . 1 . 1 . . . 1 . 2 . . . . . 1 . . . . . . . . . Locate Traps 5 | . 1 . . . . . . . 1 . . . . . 1 . . . . . 2 . . . Zone Layout 4 | . 2 . 1 . . . . . . . . . . . . . . . . . . . . 1 Garrison Registry 1 | . . . . . . . . . . . . . . . . . . 1 . . . . . . Patrol Navigation 1 | . . . . . . . . . . . . 1 . . . . . . . . . . . . Security Stations 1 | . . . . . . . . . . . . . . . . 1 . . . . . . . . Fabricator Hacks . | . . . . . . . . . . . . . . . . . . . . . . . . . Repair Station Hacks 2 | . . . 2 . . . . . . . . . . . . . . . . . . . . . Scan Component 1 | . . . 1 . . . . . . . . . . . . . . . . . . . . . Repair 1 | . . . 1 . . . . . . . . . . . . . . . . . . . . . Recycling Unit Hacks . | . . . . . . . . . . . . . . . . . . . . . . . . . Scanalyzer . | . . . . . . . . . . . . . . . . . . . . . . . . . Garrison Access Hacks 8 | . . . . . . . 1 . 1 . 1 . 1 . 1 . 1 . 1 . 1 . . . Unlock Access 8 | . . . . . . . 1 . 1 . 1 . 1 . 1 . 1 . 1 . 1 . . . Unauthorized Hacks 24 | . 7 . 1 . . . 2 1 2 . . . 1 2 . 2 1 2 2 . . . . 1 Terminals 19 | . 5 . 1 . . . 2 1 1 . . . . 2 . 2 1 2 1 . . . . 1 Track 8 | . 3 . 1 . . . 1 . . . . . . 1 . 1 . 1 . . . . . . Botnet 11 | . 2 . . . . . 1 1 1 . . . . 1 . 1 1 1 1 . . . . 1 Fabricators . | . . . . . . . . . . . . . . . . . . . . . . . . . Repair Stations . | . . . . . . . . . . . . . . . . . . . . . . . . . Recycling Units 5 | . 2 . . . . . . . 1 . . . 1 . . . . . 1 . . . . . Reject 5 | . 2 . . . . . . . 1 . . . 1 . . . . . 1 . . . . . Scanalyzers . | . . . . . . . . . . . . . . . . . . . . . . . . . Garrison Access . | . . . . . . . . . . . . . . . . . . . . . . . . . Data Cores Recovered 1 | . . . . . . . . . . . . . . . . . . . . . . . . 1 Used 1 | . . . . . . . . . . . . . . . . . . . . . . . . 1 Hacking Detections 50 | . 5 . 7 . . . 2 2 2 2 . 1 4 2 2 2 2 1 1 . 6 1 4 4 Full Trace Events 4 | . . . 1 . . . . . 1 . . . 2 . . . . . . . . . . . Feedback Events . | . . . . . . . . . . . . . . . . . . . . . . . . . Feedback Blocked . | . . . . . . . . . . . . . . . . . . . . . . . . . Robot Schematics Acquired . | . . . . . . . . . . . . . . . . . . . . . . . . . Robots Built . | . . . . . . . . . . . . . . . . . . . . . . . . . Authchips . | . . . . . . . . . . . . . . . . . . . . . . . . . Time . | . . . . . . . . . . . . . . . . . . . . . . . . . Total Robot Build Rating . | . . . . . . . . . . . . . . . . . . . . . . . . . Part Schematics Acquired . | . . . . . . . . . . . . . . . . . . . . . . . . . Parts Built . | . . . . . . . . . . . . . . . . . . . . . . . . . Authchips . | . . . . . . . . . . . . . . . . . . . . . . . . . Time . | . . . . . . . . . . . . . . . . . . . . . . . . . Total Part Build Rating . | . . . . . . . . . . . . . . . . . . . . . . . . . Parts Repaired 1 | . . . 1 . . . . . . . . . . . . . . . . . . . . . Time 32 | . . . 32 . . . . . . . . . . . . . . . . . . . . . Parts Recycled . | . . . . . . . . . . . . . . . . . . . . . . . . . Recycled Matter . | . . . . . . . . . . . . . . . . . . . . . . . . . Retrieved Matter . | . . . . . . . . . . . . . . . . . . . . . . . . . Retrieved Components . | . . . . . . . . . . . . . . . . . . . . . . . . . Parts Scanalyzed . | . . . . . . . . . . . . . . . . . . . . . . . . . Part Schematics Acquired . | . . . . . . . . . . . . . . . . . . . . . . . . . Parts Damaged . | . . . . . . . . . . . . . . . . . . . . . . . . . Bothacking | -11 -10 -10 -9 -9 -9 -8 -8 -8 -8 -8 -7 -7 -7 -7 -6 -6 -6 -6 -5 -5 -5 -5 -4 -4 ------------ Run | Scr Mat Min Mat Min Exi Min Mat Gar Mat Gar Fac Gar Fac Gar Fac Gar Fac Gar Fac Gar Fac Gar Fac Arm Used RIF Installer 9 | . . . . . . . . 1 . 1 . 2 . 1 . 1 . 1 . 1 . 1 . . Code Merge 2 | . . . . . . . . . . . . . . . . . . 1 . 1 . . . . Command Fork 1 | . . . . . . . . . . . . . . . . 1 . . . . . . . . Signal Jammer 1 | . . . . . . . . . . . . 1 . . . . . . . . . . . . Zone Cloak 1 | . . . . . . . . . . . . . . . . . . . . . . 1 . . Patrol Navigation 1 | . . . . . . . . . . . . 1 . . . . . . . . . . . . Alert ID Control 1 | . . . . . . . . . . 1 . . . . . . . . . . . . . . Structural Interface 1 | . . . . . . . . . . . . . . 1 . . . . . . . . . . Robots Hacked 94 | . . . . . . . . . . 4 . 5 9 6 3 6 6 8 6 2 3 13 12 11 Non-combat 19 | . . . . . . . . . . . . . 7 . 3 . 1 . 1 . 2 . 2 3 Combat 75 | . . . . . . . . . . 4 . 5 2 6 . 6 5 8 5 2 1 13 10 8 Robot Hacks Applied 110 | . . . . . . . . . . 4 . 5 11 8 5 7 7 8 7 2 5 17 13 11 parse_system 9 | . . . . . . . . . . . . . 1 1 . . 1 . 2 . . 4 . . ignore_repairs 3 | . . . . . . . . . . . . . 2 . 1 . . . . . . . . . map_earth 1 | . . . . . . . . . . . . . 1 . . . . . . . . . . . drop_inventory 4 | . . . . . . . . . . . . . . . 1 . . . 1 . 1 . 1 . purge_threat 7 | . . . . . . . . . . . . . 2 . 2 . . . . . 3 . . . locate_traps 1 | . . . . . . . . . . . . . 1 . . . . . . . . . . . block_reporting 3 | . . . . . . . . . . . . . . . 1 . . . . . . . 1 1 map_route 3 | . . . . . . . . . . . . . 1 . . . 1 . . . . . . 1 scatter_targeting 15 | . . . . . . . . . . 1 . 3 . 3 . 2 1 . . 1 . 3 1 . amplify_resonance 8 | . . . . . . . . . . . . . . . . . . 3 1 1 . . . 3 reboot_system 5 | . . . . . . . . . . . . . 1 . . 2 . . 1 . . . . 1 overwrite_iff 1 | . . . . . . . . . . . . . . . . . 1 . . . . . . . streamctrl_high 12 | . . . . . . . . . . . . . . 1 . 3 . 2 . . . 4 2 . formatsys_high 38 | . . . . . . . . . . 3 . 2 2 3 . . 3 3 2 . 1 6 8 5 Relay Couplers Released 75 | . . . . . . . . 10 . 9 . 11 . 11 . 10 . 11 . 8 . 3 2 . Machine Destruction 72 | . . . . . . . . 10 . 9 . 11 . 11 . 7 . 11 . 8 . 3 2 . Programmers 3 | . . . . . . . . . . . . . . . . 3 . . . . . . . . Attached 38 | . . . . . . . . . . 1 . 2 2 4 1 4 2 6 1 4 2 6 1 2 Merged Code Value 151 | . . . . . . . . . . . . . . . . . . 7 . 37 . 107 . . Fabnet Peak Effective % . | . . . . . . . . . . . . . . . . . . . . . . . . . Robots Rewired 18 | . . . . . . . . 6 . 3 . . . 2 . 3 . 2 . 2 . . . . Allies Hacked . | . . . . . . . . . . . . . . . . . . . . . . . . . Hacks Repelled . | . . . . . . . . . . . . . . . . . . . . . . . . . Allies | -11 -10 -10 -9 -9 -9 -8 -8 -8 -8 -8 -7 -7 -7 -7 -6 -6 -6 -6 -5 -5 -5 -5 -4 -4 -------- Run | Scr Mat Min Mat Min Exi Min Mat Gar Mat Gar Fac Gar Fac Gar Fac Gar Fac Gar Fac Gar Fac Gar Fac Arm Total Allies 77 | . . . . . . . . 6 . 6 . 2 2 8 . 6 4 10 2 2 1 13 10 5 Largest Group 6 | . . . . . . . . 6 4 5 4 4 2 4 1 3 4 6 5 5 3 6 6 4 Highest-Rated Group 263 | . . . . . . . . 138 93 80 64 64 42 157 43 96 140 250 260 260 96 178 263 163 Highest-Rated Ally 137 | . . . . . . . . 24 24 16 16 16 26 55 43 43 47 88 88 88 38 88 64 137 Total Orders 43 | . . . . . . . . 8 . . . 2 . 13 . 8 2 4 . . . 4 . 2 STAY 22 | . . . . . . . . 4 . . . 1 . 7 . 4 1 2 . . . 2 . 1 FOLLOW 21 | . . . . . . . . 4 . . . 1 . 6 . 4 1 2 . . . 2 . 1 Ally Attacks 554 | . . . . . . . . 18 43 16 . 80 17 69 . 37 12 33 16 38 16 48 70 41 Total Damage 14361 | . . . . . . . . 529 749 173 . 909 217 2432 . 858 367 1319 929 1495 313 919 2552 600 Kills 98 | . . . . . . . . 5 8 3 . 7 3 18 . 7 1 8 6 11 1 5 12 3 Allies Corrupted 2 | . . . . . . . . . . . . . . . . . . . . . 1 1 . . Allies Melted 1 | . . . . . . . . . . . . . . . . . . 1 . . . . . . Intel | -11 -10 -10 -9 -9 -9 -8 -8 -8 -8 -8 -7 -7 -7 -7 -6 -6 -6 -6 -5 -5 -5 -5 -4 -4 ------- Run | Scr Mat Min Mat Min Exi Min Mat Gar Mat Gar Fac Gar Fac Gar Fac Gar Fac Gar Fac Gar Fac Gar Fac Arm Robot Analysis Total . | . . . . . . . . . . . . . . . . . . . . . . . . . Derelict Logs Recovered 1 | . . 1 . . . . . . . . . . . . . . . . . . . . . . Drone Launches . | . . . . . . . . . . . . . . . . . . . . . . . . . Drone Recoveries . | . . . . . . . . . . . . . . . . . . . . . . . . . Exploration | -11 -10 -10 -9 -9 -9 -8 -8 -8 -8 -8 -7 -7 -7 -7 -6 -6 -6 -6 -5 -5 -5 -5 -4 -4 ------------- Run | Scr Mat Min Mat Min Exi Min Mat Gar Mat Gar Fac Gar Fac Gar Fac Gar Fac Gar Fac Gar Fac Gar Fac Arm Turns Passed 21991 | 95 659 256 1301 1025 231 475 574 2041 558 1603 42 1234 479 1846 211 1588 449 1284 824 1409 1084 873 1059 791 Spaces Moved 10739 | 66 445 178 671 464 133 249 261 894 278 742 22 592 255 955 104 655 234 588 487 659 542 444 517 304 Core 5 | 1 4 . . . . . . . . . . . . . . . . . . . . . . . Treads 7026 | 7 1 . . . . . 261 894 278 742 16 123 . 170 104 655 234 588 487 659 542 444 517 304 Legs . | . . . . . . . . . . . . . . . . . . . . . . . . . Wheels 3708 | 58 440 178 671 464 133 249 . . . . 6 469 255 785 . . . . . . . . . . Hover . | . . . . . . . . . . . . . . . . . . . . . . . . . Flight . | . . . . . . . . . . . . . . . . . . . . . . . . . Fastest Speed 50 | 50 95 115 115 175 175 175 160 160 160 160 145 145 145 145 162 162 162 156 156 155 152 152 152 160 Average Speed 160 | 96 100 115 156 202 175 175 160 184 160 163 156 161 148 153 162 189 162 160 157 157 154 154 154 161 Slowest Speed 245 | 160 160 115 175 215 175 175 160 240 160 240 162 240 160 162 162 242 242 240 158 245 158 232 160 243 Overloaded Moves . | . . . . . . . . . . . . . . . . . . . . . . . . . Propulsion Burnouts . | . . . . . . . . . . . . . . . . . . . . . . . . . Robots Hopped . | . . . . . . . . . . . . . . . . . . . . . . . . . Cave-ins Triggered . | . . . . . . . . . . . . . . . . . . . . . . . . . Exploration Rate (%) 43 | 4 74 29 65 83 49 51 32 92 34 64 1 70 11 89 4 63 10 66 15 70 20 44 19 31 Regions Visited 24 Branch Regions 5 Pre-discovered Areas 3 | . . 1 . 1 1 . . . . . . . . . . . . . . . . . . . Known Exits Taken 9 | . . . . . . . 1 . 1 . 1 . 1 . 1 . 1 . 1 . 1 . 1 . Unknown Exits Taken 7 | 1 1 1 1 1 1 1 . . . . . . . . . . . . . . . . . . Scrap Searched 3 | . . . . 1 . 2 . . . . . . . . . . . . . . . . . . Spaces Dug 80 | . . . . . . . . 4 1 1 . 9 6 22 6 . 1 . 1 6 6 . 11 6 Terrain Destroyed 264 | . . . 5 . . . 51 10 1 24 . 56 15 26 6 4 1 2 1 9 14 . 18 21 Melee 9 | . . . . . . . . 4 1 1 . . . . 2 . 1 . . . . . . . Projectile 113 | . . . . . . . . . . 4 . 11 11 15 4 4 . 2 1 9 14 . 17 21 AOE 141 | . . . 5 . . . 51 6 . 19 . 45 4 11 . . . . . . . . . . Terrain Rammed . | . . . . . . . . . . . . . . . . . . . . . . . . . Walls Destroyed . | . . . . . . . . . . . . . . . . . . . . . . . . . Machines Disabled . | . . . . . . . . . . . . . . . . . . . . . . . . . Actions | -11 -10 -10 -9 -9 -9 -8 -8 -8 -8 -8 -7 -7 -7 -7 -6 -6 -6 -6 -5 -5 -5 -5 -4 -4 --------- Run | Scr Mat Min Mat Min Exi Min Mat Gar Mat Gar Fac Gar Fac Gar Fac Gar Fac Gar Fac Gar Fac Gar Fac Arm Total 14022 | 84 574 201 858 525 132 275 379 1155 332 982 30 783 326 1239 136 916 282 855 539 908 714 588 691 518 Wait 1257 | . 42 8 107 35 . 14 43 96 3 84 1 63 24 84 5 143 6 126 7 73 96 27 73 97 Move 10719 | 65 444 177 670 463 132 248 260 893 277 741 22 591 255 954 104 654 233 587 487 658 542 442 516 304 Hop . | . . . . . . . . . . . . . . . . . . . . . . . . . Pick Up 224 | 6 13 . 21 5 . 2 14 19 4 16 3 9 2 14 3 12 3 16 5 23 2 17 2 13 Fast Attach 96 | 7 3 . 8 . . . 5 1 2 3 . 3 1 7 1 4 4 16 2 11 4 8 2 4 Attach 105 | . 4 . 4 2 . . 3 5 . 12 2 7 1 7 2 5 1 9 2 8 2 5 8 16 Detach 26 | . . . 1 . . . . . . 2 . . . 1 . 2 . 6 . 5 1 3 3 2 Swap 232 | . 5 . 6 3 . . 6 18 7 13 . 14 6 16 4 16 9 13 11 19 15 16 15 20 Drop 206 | . 10 . 9 4 . 2 20 22 7 11 2 5 1 11 3 8 4 23 7 28 5 21 . 3 Fire 961 | 6 48 . 32 13 . 9 28 36 31 86 . 67 35 93 12 72 13 59 17 82 46 45 72 59 Melee 92 | . 4 16 . . . . . 43 1 13 . . . 2 2 . 9 . . . . 2 . . Ram 1 | . . . . . . . . . . . . . 1 . . . . . . . . . . . Kick . | . . . . . . . . . . . . . . . . . . . . . . . . . Crush 6 | . 1 . . . . . . . . . . . . . . . . . 1 1 1 2 . . Escape Stasis 76 | . . . . . . . . 4 . . . 24 . 48 . . . . . . . . . . Rewire 21 | . . . . . . . . 18 . 1 . . . 2 . . . . . . . . . . Trap . | . . . . . . . . . . . . . . . . . . . . . . . . . Miscellaneous . | . . . . . . . . . . . . . . . . . . . . . . . . . Route ------- -11/Scrapyard -10/Materials (discovered 3 exits: *Mat x2 / *Min) -10/Mines -9/Materials (discovered 3 exits: *Mat x2 / [*Min]) -9/Mines (discovered 2 exits: *Exi / [*Zio]) -9/Exiles -8/Mines -8/Materials (discovered 2 exits: *Fac / Gar) -8/Garrison (discovered 3 exits: *Mat x3) -8/Materials (discovered 2 exits: *Fac / Gar) -8/Garrison -7/Factory -7/Garrison (discovered 2 exits: *Fac x2) -7/Factory -7/Garrison (discovered 3 exits: *Fac x3) -6/Factory -6/Garrison (discovered 2 exits: *Fac x2) -6/Factory -6/Garrison (discovered 3 exits: *Fac x3) -5/Factory -5/Garrison (discovered 2 exits: *Fac x2) -5/Factory (discovered 3 exits: Upp x2 / Gar) -5/Garrison -4/Factory (discovered 3 exits: Upp x2 / *Arm) -4/Armory (discovered 2 exits: Res x2) History --------- Turn | Location | Event 25 | -11/Scrapyard | Discovered new exit (range 15) 96 | -11/Scrapyard | Entered Materials 192 | -10/Materials | Discovered new exit (range 15) 314 | -10/Materials | Discovered new exit (range 12) 328 | -10/Materials | Build established: Mutant 422 | -10/Materials | Core integrity fell below 50% 484 | -10/Materials | Lost 6 parts (1p2n1u2w) 654 | -10/Materials | Discovered new exit (range 15) 755 | -10/Materials | Entered Mines 759 | -10/Mines | Found the Drone Emporium 850 | -10/Mines | Met a Derelict bent on vengeance 912 | -10/Mines | Learned location of Zion (-7) 974 | -10/Mines | Discovered new exit (range 16) 1011 | -10/Mines | Entered Materials 1011 | -9/Materials | Evolved 2 slots: Propulsion x1, Utility x1 1267 | -9/Materials | Discovered new exit (range 16) 1888 | -9/Materials | Discovered new exit (range 16) 1980 | -9/Materials | Repaired Cooling System 2171 | -9/Materials | Discovered new exit (range 8) 2229 | -9/Materials | Build established: Scavenger-Mutant 2312 | -9/Materials | Entered Mines 2411 | -9/Mines | A Derelict revealed a hidden shortcut to a safe place 2900 | -9/Mines | Learned location of Storage (-7) 3129 | -9/Mines | Found a damaged Exp. Sensor Array with a note attached 3134 | -9/Mines | Found Prototype Device 3135 | -9/Mines | Identified Exp. Sensor Array 3311 | -9/Mines | Received a Rocket Launcher from a helpful Derelict 3328 | -9/Mines | Deemed a non-threat by the Exiles lab entrance 3330 | -9/Mines | Discovered new exit (range 5) 3337 | -9/Mines | Entered Exiles 3379 | -9/Exiles | Met 8R-AWN 3411 | -9/Exiles | Met EX-HEX 3466 | -9/Exiles | Build established: Mutant 3479 | -9/Exiles | Met EX-DEC 3549 | -9/Exiles | Discovered new exit (range 12) 3568 | -9/Exiles | Entered Mines 4013 | -8/Mines | Discovered new exit (range 8) 4043 | -8/Mines | Entered Materials 4043 | -8/Materials | Evolved 2 slots: Propulsion x2 4345 | -8/Materials | Build established: Scavenger-Mutant 4561 | -8/Materials | Discovered new exit (range 6) 4588 | -8/Materials | Identified exit to Garrison 4617 | -8/Materials | Entered Garrison 4630 | -8/Garrison | Triggered checkpoint 4970 | -8/Garrison | Triggered checkpoint 5207 | -8/Garrison | Installed Relay Interface Framework 5219 | -8/Garrison | Discovered new exit (range 12) 5689 | -8/Garrison | Discovered new exit (range 10) 6078 | -8/Garrison | Triggered checkpoint 6102 | -8/Garrison | Garrison Relay disabled 6284 | -8/Garrison | Build established: Commander-Mutant 6302 | -8/Garrison | Triggered checkpoint 6340 | -8/Garrison | Triggered checkpoint 6552 | -8/Garrison | Discovered new exit (range 3) 6610 | -8/Garrison | Garrison Relay disabled 6620 | -8/Garrison | Build established: Scavenger-Mutant 6658 | -8/Garrison | Entered Materials 6658 | -8/Materials | Accompanied by 4 allies 6965 | -8/Materials | Build established: Commander-Mutant 7123 | -8/Materials | Garrison activated, responded to threat 7189 | -8/Materials | Discovered new exit (range 14) 7205 | -8/Materials | Identified exit to Garrison 7216 | -8/Materials | Entered Garrison 7334 | -8/Garrison | Build established: Scavenger-Mutant 7616 | -8/Garrison | Triggered checkpoint 7929 | -8/Garrison | Spotted B-75 Beast 7962 | -8/Garrison | Destroyed B-75 Beast 7978 | -8/Garrison | Lost 4 parts (2n1u1w) 8062 | -8/Garrison | Triggered checkpoint 8250 | -8/Garrison | Garrison Relay disabled 8301 | -8/Garrison | Discovered new exit (range 10) 8368 | -8/Garrison | Triggered checkpoint 8404 | -8/Garrison | Build established: Bothacker-Mutant 8432 | -8/Garrison | Triggered checkpoint 8454 | -8/Garrison | Garrison Relay disabled 8674 | -8/Garrison | Triggered checkpoint 8711 | -8/Garrison | Expanded RIF knowledge: Alert ID Control 8819 | -8/Garrison | Entered Factory 8819 | -7/Factory | Accompanied by 4 allies 8819 | -7/Factory | Evolved 2 slots: Propulsion x1, Utility x1 8860 | -7/Factory | Identified exit to Garrison 8861 | -7/Factory | Entered Garrison 8861 | -7/Garrison | Accompanied by 4 allies 8946 | -7/Garrison | Triggered checkpoint 9036 | -7/Garrison | Lost 3 parts (3n) 9077 | -7/Garrison | Expanded RIF knowledge: Patrol Navigation 9101 | -7/Garrison | Garrison Relay disabled 9270 | -7/Garrison | Triggered checkpoint 9281 | -7/Garrison | System corruption reached 10% 9536 | -7/Garrison | Triggered checkpoint 9572 | -7/Garrison | Expanded RIF knowledge: Signal Jamming 9606 | -7/Garrison | Garrison Relay disabled 9645 | -7/Garrison | Discovered new exit (range 14) 9835 | -7/Garrison | Discovered new exit (range 12) 9913 | -7/Garrison | Build established: Botlord-Mutant 9931 | -7/Garrison | Triggered checkpoint 10017 | -7/Garrison | Garrison Relay disabled 10095 | -7/Garrison | Entered Factory 10095 | -7/Factory | Accompanied by 1 ally 10574 | -7/Factory | Identified exit to Garrison 10574 | -7/Factory | Entered Garrison 10574 | -7/Garrison | Accompanied by 1 ally 10689 | -7/Garrison | Found embedded Infiltrators 10755 | -7/Garrison | Triggered checkpoint 10788 | -7/Garrison | Garrison Relay disabled 10930 | -7/Garrison | Triggered checkpoint 10936 | -7/Garrison | Triggered checkpoint 11172 | -7/Garrison | Discovered new exit (range 12) 11192 | -7/Garrison | Triggered checkpoint 11227 | -7/Garrison | Garrison Relay disabled 11338 | -7/Garrison | Triggered checkpoint 11970 | -7/Garrison | Discovered new exit (range 14) 12003 | -7/Garrison | Expanded RIF knowledge: Structural Interface 12041 | -7/Garrison | Triggered checkpoint 12093 | -7/Garrison | Lost 4 parts (1n3u) 12106 | -7/Garrison | Garrison Relay disabled 12191 | -7/Garrison | Triggered checkpoint 12340 | -7/Garrison | Discovered new exit (range 10) 12420 | -7/Garrison | Entered Factory 12420 | -6/Factory | Accompanied by 1 ally 12420 | -6/Factory | Evolved 2 slots: Utility x2 12631 | -6/Factory | Identified exit to Garrison 12631 | -6/Factory | Entered Garrison 12631 | -6/Garrison | Accompanied by 1 ally 12793 | -6/Garrison | Learned Factory security intel 12803 | -6/Garrison | Spotted B-75 Beast 12856 | -6/Garrison | Triggered checkpoint 12894 | -6/Garrison | Garrison Relay disabled 13052 | -6/Garrison | Destroyed B-75 Beast 13062 | -6/Garrison | Triggered checkpoint 13323 | -6/Garrison | Lost 3 parts (2n1u) 13343 | -6/Garrison | Discovered new exit (range 10) 13454 | -6/Garrison | Triggered checkpoint 13514 | -6/Garrison | Triggered checkpoint 13565 | -6/Garrison | Garrison Relay disabled 13898 | -6/Garrison | Triggered checkpoint 14033 | -6/Garrison | Expanded RIF knowledge: Command Fork 14045 | -6/Garrison | Discovered new exit (range 13) 14215 | -6/Garrison | Identified exit to Factory 14219 | -6/Garrison | Entered Factory 14219 | -6/Factory | Accompanied by 1 ally 14663 | -6/Factory | Identified exit to Garrison 14668 | -6/Factory | Entered Garrison 14668 | -6/Garrison | Accompanied by 3 allies 14695 | -6/Garrison | Expanded RIF knowledge: Code Merge 14808 | -6/Garrison | Triggered checkpoint 14837 | -6/Garrison | Garrison Relay disabled 14896 | -6/Garrison | Triggered checkpoint 14916 | -6/Garrison | Triggered checkpoint 15217 | -6/Garrison | Discovered new exit (range 10) 15230 | -6/Garrison | Identified exit to Factory 15270 | -6/Garrison | Triggered checkpoint 15351 | -6/Garrison | Lost 6 parts (3n2u1w) 15357 | -6/Garrison | Garrison Relay disabled 15403 | -6/Garrison | Discovered exit to Factory (range 44) 15403 | -6/Garrison | Discovered exit to Factory (range 63) 15403 | -6/Garrison | Discovered exit to Factory (range 26) 15632 | -6/Garrison | Found embedded Infiltrators 15743 | -6/Garrison | Spotted B-75 Beast 15755 | -6/Garrison | Allies destroyed B-75 Beast 15782 | -6/Garrison | Found Enh. Force Lance 15882 | -6/Garrison | Garrison Relay disabled 15952 | -6/Garrison | Entered Factory 15952 | -5/Factory | Accompanied by 3 allies 15952 | -5/Factory | Evolved 2 slots: Utility x2 16775 | -5/Factory | Identified exit to Garrison 16776 | -5/Factory | Entered Garrison 16776 | -5/Garrison | Accompanied by 5 allies 16826 | -5/Garrison | Assembled breached garrison interior 16924 | -5/Garrison | Expanded RIF knowledge: Code Merge 16985 | -5/Garrison | Garrison Relay disabled 17102 | -5/Garrison | Spotted B-75 Beast 17190 | -5/Garrison | Destroyed B-75 Beast 17233 | -5/Garrison | Lost 6 parts (2n2u2w) 17657 | -5/Garrison | Found Relay Coupler [Proto] 17687 | -5/Garrison | Discovered new exit (range 10) 17742 | -5/Garrison | Garrison Relay disabled 18156 | -5/Garrison | Discovered new exit (range 3) 18178 | -5/Garrison | Identified exit to Factory 18185 | -5/Garrison | Entered Factory 18185 | -5/Factory | Accompanied by 2 allies 18230 | -5/Factory | Identified exit to Upper Caves 18485 | -5/Factory | First assault squad dispatched 19269 | -5/Factory | Identified exit to Garrison 19269 | -5/Factory | Entered Garrison 19287 | -5/Garrison | Expanded RIF knowledge: Zone Cloak 19380 | -5/Garrison | Triggered checkpoint 19394 | -5/Garrison | Spotted B-75 Beast 19548 | -5/Garrison | Found embedded Infiltrators 19590 | -5/Garrison | System corruption reached 10% 19590 | -5/Garrison | P-70 Sage assimilated allied 6F-Q7Z(x) 19689 | -5/Garrison | Discovered new exit (range 2) 19690 | -5/Garrison | Identified exit to Factory 19794 | -5/Garrison | Triggered checkpoint 19808 | -5/Garrison | Garrison Relay disabled 20013 | -5/Garrison | Core integrity fell below 50% 20142 | -5/Garrison | Entered Factory 20142 | -4/Factory | Accompanied by 3 allies 20142 | -4/Factory | Evolved 2 slots: Utility x1, Weapon x1 20676 | -4/Factory | Garrison activated, responded to threat 20706 | -4/Factory | P-70 Sage assimilated allied Virus 7a 20771 | -4/Factory | Spotted B-86 Titan 20825 | -4/Factory | Destroyed B-86 Titan 20884 | -4/Factory | Lost 4 parts (1n2u1w) 21024 | -4/Factory | Identified exit to Upper Caves 21024 | -4/Factory | Identified exit to Armory 21201 | -4/Factory | Entered Armory 21201 | -4/Armory | Accompanied by 1 ally 21370 | -4/Armory | Lost 4 parts (2n2w) 21436 | -4/Armory | Identified exit to Research 21977 | -4/Armory | Core integrity fell below 50% 21992 | -4/Armory | Self-destructed Last Messages --------------- 21967_ Power failure, Rnf. Quantum Reactor shutdown. 21967_ Overheating: Relay Coupler [NC] damaged (-7). 21967_ Overheating: Huge Storage Unit damaged (-18). 21969_ Overheating: Relay Coupler [Heavy] damaged (-7). 21970_ Overheating: Enh. Nova Cannon damaged (-13). 21970_ Overheating: Relay Coupler [Heavy] damaged (-2). 21970_ Overheating: Adv. Signal Interpreter damaged (-2). 21971_ Overheating: Matter Compressor damaged (-53). 21973_ Overheating: Huge Storage Unit damaged (-8). 21973_ Overheating: Lgt. Antimatter Cannon damaged (-6). 21976_ Overheating: Energy bleed (-42). 21976_ Lgt. Antimatter Cannon destroyed. 21976_ Critical hit (Blast). 21977_ Power failure, Rnf. Quantum Reactor shutdown. 21977_ Lgt. Antimatter Cannon broken. 21977_ Overheating: Short circuit. 21985_ Penetrated by Slug. 21985_ Rnf. Quantum Reactor destroyed. 21985_ Enh. Nova Cannon destroyed. 21990_ Knocked back. Map ----- +----------------------------------------------------+ | ????????????????????????????????????????????????? | | ????????????????????????????????????????????????? | | ????????????????????????????????????????????????? | | ????????????????????????????????????????????????? | | ????????????????????????????????????????????????? | | ??????????????????????????????? ??????????????? | | ??????????????????????